fUST/lending_fUST_20250121
["ID","MTS","AMOUNT","RATE_DAILY","PERIOD"]
[349851556,1737461436864,-500.0,0.00022191,3]
[349851558,1737461436873,-500.0,0.00022191,3]
[349851560,1737461436882,-500.0,0.00022191,3]
[349851562,1737461436892,-588.42,0.00022191,3]
[349851564,1737461436901,-1715.19,0.00022191,3]
[349851566,1737461436910,-1280.51,0.00022191,3]
[349851568,1737461436920,-151.0,0.00022191,7]
[349851570,1737461436929,-500.0,0.00022191,3]
[349851572,1737461436939,-151.0,0.00022191,7]
[349851575,1737461436948,-1069.22,0.00022191,3]
[349851577,1737461436958,-1708.09,0.00022191,3]
[349851578,1737461436967,-151.0,0.00022191,7]
[349851580,1737461436977,-731.78,0.00022191,3]
[349851582,1737461436986,-500.0,0.00022191,3]
[349851584,1737461436996,-500.0,0.00022191,3]
[349851585,1737461437006,-500.0,0.00022191,3]
[349851586,1737461437017,-500.0,0.00022191,3]
[349851587,1737461437026,-500.0,0.00022191,3]
[349851588,1737461437041,-151.0,0.00022191,7]
[349851589,1737461437051,-557.49,0.00022191,3]
[349851590,1737461437062,-500.0,0.00022191,3]
[349851591,1737461437073,-500.0,0.00022191,3]
[349851592,1737461437083,-500.0,0.00022191,3]
[349851593,1737461437093,-151.0,0.00022191,7]
[349851594,1737461437103,-277.841377,0.00022191,7]
[349851595,1737461437113,-5473.07,0.00022191,3]
[349851596,1737461437123,-277.841377,0.00022191,7]
[349851597,1737461437134,-9457.26,0.00022191,3]
[349851598,1737461437143,-500.0,0.00022191,3]
[349851599,1737461437153,-500.0,0.00022191,3]
[349851600,1737461437163,-500.0,0.00022191,3]
[349851601,1737461437172,-151.0,0.00022191,7]
[349851603,1737461437182,-500.0,0.00022191,3]
[349851605,1737461437192,-500.0,0.00022191,3]
[349851607,1737461437202,-3204.18,0.00022191,3]
[349851609,1737461437212,-1004.53,0.00022191,3]
[349851611,1737461437222,-500.0,0.00022191,3]
[349851613,1737461437231,-500.0,0.00022191,3]
[349851615,1737461437241,-151.0,0.00022191,7]
[349851617,1737461437252,-500.0,0.00022191,3]
[349851619,1737461437262,-500.0,0.00022191,3]
[349851621,1737461437272,-151.0,0.00022191,7]
[349851623,1737461437283,-500.0,0.00022191,3]
[349851625,1737461437292,-500.0,0.00022191,3]
[349851627,1737461437301,-500.0,0.00022191,3]
[349851629,1737461437312,-500.0,0.00022191,3]
[349851631,1737461437323,-1448.9,0.00022191,3]
[349851633,1737461437333,-500.0,0.00022191,3]
[349851635,1737461437342,-1352.71,0.00022191,3]
[349851637,1737461437353,-500.0,0.00022191,3]
[349851639,1737461437363,-500.0,0.00022191,3]
[349851641,1737461437374,-500.0,0.00022191,3]
[349851643,1737461437384,-383.66600829,0.00022191,3]
[349851645,1737461437394,-527.44,0.00022191,3]
[349851647,1737461437403,-972.81,0.00022191,3]
[349851649,1737461437413,-500.0,0.00022191,3]
[349851651,1737461437422,-828.46,0.00022191,3]
[349851653,1737461437431,-500.0,0.00022191,3]
[349851655,1737461437440,-500.0,0.00022191,3]
[349851657,1737461437450,-151.0,0.00022191,7]
[349851659,1737461437459,-151.0,0.00022191,7]
[349851661,1737461437468,-500.0,0.00022191,3]
[349851663,1737461437477,-1369.29,0.00022191,3]
[349851665,1737461437487,-500.0,0.00022191,3]
[349851667,1737461437496,-500.0,0.00022191,3]
[349851669,1737461437505,-500.0,0.00022191,3]
[349851671,1737461437515,-2319.36,0.00022191,3]
[349851673,1737461437524,-500.0,0.00022191,3]
[349851674,1737461437533,-500.0,0.00022191,3]
[349851676,1737461437542,-500.0,0.00022191,3]
[349851678,1737461437551,-16245.72,0.00022191,3]
[349851680,1737461437561,-551.05,0.00022191,3]
[349851682,1737461437570,-151.0,0.0002221,7]
[349851684,1737461437579,-151.0,0.0002221,7]
[349851686,1737461437588,-151.0,0.0002221,7]
[349851688,1737461437598,-151.0,0.0002221,7]
[349851690,1737461437607,-151.0,0.0002221,7]
[349851692,1737461437617,-151.0,0.0002221,7]
[349851694,1737461437626,-151.0,0.0002221,7]
[349851696,1737461437635,-219.692716,0.0002221,7]
[349851698,1737461437644,-277.841377,0.0002221,7]
[349851700,1737461437653,-277.841377,0.0002221,7]
[349851702,1737461437662,-919.11146386,0.0002221,3]
[349851704,1737461437672,-246.732066,0.00022228,7]
[349851706,1737461437681,-151.0,0.00022228,7]
[349851708,1737461437690,-161.98547783,0.00022228,2]
[349851711,1737461437700,-919.11146386,0.00022314,3]
[349851713,1737461437709,-500.0,0.00022328,3]
[349851715,1737461437718,-500.0,0.00022328,3]
[349851716,1737461437727,-500.0,0.00022328,3]
[349851718,1737461437737,-500.0,0.00022328,3]
[349851720,1737461437747,-500.0,0.00022328,3]
[349851722,1737461437756,-278.985377,0.00022328,7]
[349851725,1737461437766,-156.585186,0.00022328,7]
[349851727,1737461437775,-156.585186,0.00022328,7]
[349851728,1737461437786,-156.585186,0.00022328,7]
[349851731,1737461437796,-156.585186,0.00022328,7]
[349851733,1737461437806,-154.572393,0.00022328,7]
[349851734,1737461437815,-500.0,0.00022328,3]
[349851736,1737461437824,-500.0,0.00022328,3]
[349851739,1737461437834,-500.0,0.00022328,3]
[349851740,1737461437843,-634.47,0.00022328,3]
[349851743,1737461437852,-151.0,0.00022328,7]
[349851745,1737461437862,-151.0,0.00022328,7]
[349851747,1737461437871,-151.0,0.00022328,7]
[349851748,1737461437880,-151.0,0.00022328,7]
[349851751,1737461437890,-500.0,0.00022328,3]
[349851761,1737461437984,-500.0,0.00022328,3]
[349851763,1737461437993,-500.0,0.00022328,3]
[349851765,1737461438003,-500.0,0.00022328,3]
[349851767,1737461438013,-500.0,0.00022328,3]
[349851770,1737461438022,-151.0,0.00022328,7]
[349851771,1737461438033,-500.0,0.00022328,3]
[349851773,1737461438043,-500.0,0.00022328,3]
[349851775,1737461438053,-500.0,0.00022328,3]
[349851777,1737461438063,-500.0,0.00022328,3]
[349851779,1737461438074,-500.0,0.00022328,3]
[349851781,1737461438084,-500.0,0.00022328,3]
[349851783,1737461438094,-500.0,0.00022328,3]
[349851785,1737461438104,-500.0,0.00022328,3]
[349851788,1737461438114,-500.0,0.00022328,3]
[349851790,1737461438124,-500.0,0.00022328,3]
[349851792,1737461438134,-500.0,0.00022328,3]
[349851793,1737461438144,-151.0,0.00022328,7]
[349851796,1737461438155,-246.558302,0.00022328,7]
[349851798,1737461438164,-500.0,0.00022328,3]
[349851799,1737461438174,-151.0,0.00022328,7]
[349851801,1737461438184,-151.0,0.00022328,7]
[349851803,1737461438194,-500.0,0.00022328,3]
[349851805,1737461438204,-594.33,0.00022328,3]
[349851807,1737461438214,-500.0,0.00022328,3]
[349851810,1737461438224,-167.644444,0.00022328,7]
[349851811,1737461438233,-500.0,0.00022328,2]
[349851813,1737461438244,-500.0,0.00022328,3]
[349851816,1737461438257,-151.0,0.00022328,7]
[349851818,1737461438267,-500.0,0.00022328,2]
[349851820,1737461438277,-500.0,0.00022328,3]
[349851822,1737461438290,-151.0,0.00022328,7]
[349851824,1737461438301,-729.11,0.00022328,3]
[349851826,1737461438310,-168.423768,0.00022328,7]
[349851828,1737461438319,-500.0,0.00022328,3]
[349851830,1737461438328,-500.0,0.00022328,3]
[349851832,1737461438338,-500.0,0.00022328,3]
[349851834,1737461438347,-588.42,0.00022328,3]
[349851836,1737461438356,-1715.19,0.00022328,3]
[349851838,1737461438366,-1280.51,0.00022328,3]
[349851839,1737461438377,-151.0,0.00022328,7]
[349851841,1737461438387,-500.0,0.00022328,3]
[349851844,1737461438398,-151.0,0.00022328,7]
[349851845,1737461438407,-1069.22,0.00022328,3]
[349851848,1737461438417,-1708.09,0.00022328,3]
[349851849,1737461438427,-180.25312,0.00022328,7]
[349851852,1737461438436,-731.78,0.00022328,3]
[349851854,1737461438446,-500.0,0.00022328,3]
[349851855,1737461438456,-500.0,0.00022328,3]
[349851858,1737461438468,-500.0,0.00022328,3]
[349851859,1737461438478,-500.0,0.00022328,3]
[349851862,1737461438487,-500.0,0.00022328,3]
[349851864,1737461438497,-151.0,0.00022328,7]
[349851865,1737461438507,-557.49,0.00022328,3]
[349851867,1737461438516,-500.0,0.00022328,3]
[349851869,1737461438525,-500.0,0.00022328,3]
[349851871,1737461438536,-593.74675965,0.00022328,3]
[349851873,1737461438545,-277.841377,0.00022328,7]
[349851875,1737461438554,-5473.07,0.00022328,3]
[349851877,1737461438564,-277.841377,0.00022328,7]
[349851879,1737461438573,-9457.26,0.00022328,3]
[349851881,1737461438582,-500.0,0.00022328,3]
[349851883,1737461438592,-500.0,0.00022328,3]
[349851885,1737461438602,-151.0,0.00022328,7]
[349851887,1737461438611,-500.0,0.00022328,3]
[349851889,1737461438620,-500.0,0.00022328,3]
[349851891,1737461438630,-3204.18,0.00022328,3]
[349851893,1737461438639,-1004.53,0.00022328,3]
[349851895,1737461438648,-500.0,0.00022328,3]
[349851897,1737461438658,-500.0,0.00022328,3]
[349851899,1737461438667,-151.0,0.00022328,7]
[349851901,1737461438676,-151.0,0.00022328,7]
[349851903,1737461438686,-644.24,0.00022328,3]
[349851905,1737461438695,-500.0,0.00022328,3]
[349851907,1737461438705,-151.0,0.00022328,7]
[349851909,1737461438714,-500.0,0.00022328,3]
[349851911,1737461438723,-151.0,0.00022328,7]
[349851913,1737461438732,-500.0,0.00022328,3]
[349851915,1737461438742,-500.0,0.00022328,3]
[349851917,1737461438751,-1448.9,0.00022328,3]
[349851919,1737461438761,-500.0,0.00022328,3]
[349851921,1737461438771,-1352.71,0.00022328,3]
[349851923,1737461438780,-290.72888621,0.00022328,3]
[349851925,1737461438791,-500.0,0.00022328,3]
[349851927,1737461438801,-500.0,0.00022328,3]
[349851929,1737461438810,-527.44,0.00022328,3]
[349851931,1737461438819,-972.81,0.00022328,3]
[349851933,1737461438829,-500.0,0.00022328,3]
[349851935,1737461438838,-828.46,0.00022328,3]
[349851937,1737461438847,-500.0,0.00022328,3]
[349851939,1737461438857,-500.0,0.00022328,3]
[349851941,1737461438867,-185.849908,0.00022328,7]
[349851943,1737461438877,-500.0,0.00022328,3]
[349851945,1737461438887,-1369.29,0.00022328,3]
[349851947,1737461438896,-500.0,0.00022328,3]
[349851949,1737461438906,-500.0,0.00022328,3]
[349851951,1737461438915,-500.0,0.00022328,3]
[349851953,1737461438924,-2319.36,0.00022328,3]
[349851955,1737461438933,-500.0,0.00022328,3]
[349851957,1737461438943,-500.0,0.00022328,3]
[349851959,1737461438952,-500.0,0.00022328,3]
[349851961,1737461438961,-16245.72,0.00022328,3]
[349851963,1737461438972,-922.9034293,0.00022375,2]
[349851965,1737461438982,-150.0,0.000224,2]
[349851967,1737461438992,-919.11146386,0.00022417,3]
[349851969,1737461439002,-500.0,0.00022449,2]
[349851971,1737461439011,-151.0,0.00022465,7]
[349851973,1737461439022,-151.0,0.00022465,7]
[349851975,1737461439033,-151.0,0.00022465,7]
[349851977,1737461439042,-500.0,0.00022465,3]
[349851979,1737461439051,-500.0,0.00022465,3]
[349851981,1737461439060,-500.0,0.00022465,3]
[349851983,1737461439070,-500.0,0.00022465,3]
[349851985,1737461439080,-500.0,0.00022465,3]
[349851987,1737461439089,-151.0,0.00022465,7]
[349851989,1737461439099,-156.585186,0.00022465,7]
[349851991,1737461439108,-156.585186,0.00022465,7]
[349851993,1737461439117,-500.0,0.00022465,3]
[349851995,1737461439127,-500.0,0.00022465,3]
[349851997,1737461439136,-500.0,0.00022465,3]
[349851999,1737461439146,-634.47,0.00022465,3]
[349852001,1737461439156,-151.0,0.00022465,7]
[349852004,1737461439165,-151.0,0.00022465,7]
[349852006,1737461439175,-151.0,0.00022465,7]
[349852008,1737461439184,-232.108236,0.00022465,7]
[349852009,1737461439194,-500.0,0.00022465,3]
[349852012,1737461439204,-500.0,0.00022465,3]
[349852014,1737461439213,-500.0,0.00022465,3]
[349852015,1737461439222,-500.0,0.00022465,3]
[349852017,1737461439232,-500.0,0.00022465,3]
[349852019,1737461439242,-151.0,0.00022465,7]
[349852021,1737461439255,-259.21925,0.00022465,7]
[349852023,1737461439265,-500.0,0.00022465,3]
[349852025,1737461439275,-500.0,0.00022465,3]
[349852027,1737461439284,-401.88520396,0.00022465,3]
[349852030,1737461439295,-500.0,0.00022465,3]
[349852032,1737461439307,-500.0,0.00022465,3]
[349852033,1737461439316,-500.0,0.00022465,3]
[349852037,1737461439325,-500.0,0.00022465,3]
[349852039,1737461439334,-500.0,0.00022465,3]
[349852042,1737461439343,-500.0,0.00022465,3]
[349852044,1737461439353,-500.0,0.00022465,3]
[349852045,1737461439363,-500.0,0.00022465,3]
[349852047,1737461439373,-151.0,0.00022465,7]
[349852049,1737461439382,-151.0,0.00022465,7]
[349852051,1737461439391,-500.0,0.00022465,3]
[349852053,1737461439401,-151.0,0.00022465,7]
[349852055,1737461439411,-151.0,0.00022465,7]
[349852057,1737461439420,-151.0,0.00022465,7]
[349852059,1737461439430,-151.0,0.00022465,7]
[349852061,1737461439439,-500.0,0.00022465,3]
[349852063,1737461439449,-594.33,0.00022465,3]
[349852065,1737461439458,-500.0,0.00022465,3]
[349852067,1737461439467,-500.0,0.00022465,2]
[349852069,1737461439476,-500.0,0.00022465,3]
[349852071,1737461439486,-223.081584,0.00022465,7]
[349852072,1737461439495,-500.0,0.00022465,2]
[349852073,1737461439504,-500.0,0.00022465,3]
[349852074,1737461439513,-729.11,0.00022465,3]
[349852075,1737461439523,-151.0,0.00022465,7]
[349852076,1737461439533,-151.0,0.00022465,7]
[349852078,1737461439543,-500.0,0.00022465,3]
[349852080,1737461439552,-500.0,0.00022465,3]
[349852082,1737461439562,-500.0,0.00022465,3]
[349852084,1737461439571,-588.42,0.00022465,3]
[349852086,1737461439581,-1715.19,0.00022465,3]
[349852088,1737461439591,-1280.51,0.00022465,3]
[349852090,1737461439600,-151.0,0.00022465,7]
[349852092,1737461439609,-151.0,0.00022465,7]
[349852094,1737461439618,-558.22894488,0.00022465,3]
[349852096,1737461439627,-151.0,0.00022465,7]
[349852098,1737461439637,-195.813638,0.00022465,7]
[349852100,1737461439646,-1069.22,0.00022465,3]
[349852102,1737461439656,-1708.09,0.00022465,3]
[349852104,1737461439665,-731.78,0.00022465,3]
[349852106,1737461439675,-500.0,0.00022465,3]
[349852108,1737461439684,-500.0,0.00022465,3]
[349852110,1737461439694,-500.0,0.00022465,3]
[349852112,1737461439703,-500.0,0.00022465,3]
[349852114,1737461439712,-151.0,0.00022465,7]
[349852116,1737461439722,-151.0,0.00022465,7]
[349852118,1737461439731,-557.49,0.00022465,3]
[349852120,1737461439740,-500.0,0.00022465,3]
[349852122,1737461439749,-574.20288792,0.00022465,3]
[349852124,1737461439758,-277.841377,0.00022465,7]
[349852127,1737461439768,-277.841377,0.00022465,7]
[349852128,1737461439777,-5473.07,0.00022465,3]
[349852130,1737461439788,-277.841377,0.00022465,7]
[349852132,1737461439797,-9457.26,0.00022465,3]
[349852135,1737461439806,-277.841377,0.00022465,7]
[349852136,1737461439815,-500.0,0.00022465,3]
[349852139,1737461439824,-500.0,0.00022465,3]
[349852141,1737461439834,-500.0,0.00022465,3]
[349852143,1737461439843,-3204.18,0.00022465,3]
[349852145,1737461439851,-1004.53,0.00022465,3]
[349852147,1737461439860,-500.0,0.00022465,3]
[349852149,1737461439867,-500.0,0.00022465,3]
[349852151,1737461439875,-248.167898,0.00022465,7]
[349852153,1737461439883,-500.0,0.00022465,3]
[349852156,1737461439893,-500.0,0.00022465,3]
[349852157,1737461439899,-151.0,0.00022465,7]
[349852159,1737461439908,-151.0,0.00022465,7]
[349852161,1737461439916,-500.0,0.00022465,3]
[349852164,1737461439925,-500.0,0.00022465,3]
[349852166,1737461439933,-1448.9,0.00022465,3]
[349852168,1737461439943,-500.0,0.00022465,3]
[349852170,1737461439952,-1352.71,0.00022465,3]
[349852172,1737461439961,-500.0,0.00022465,3]
[349852175,1737461439970,-500.0,0.00022465,3]
[349852177,1737461439980,-527.44,0.00022465,3]
[349852178,1737461439990,-972.81,0.00022465,3]
[349852180,1737461439999,-500.0,0.00022465,3]
[349852182,1737461440009,-828.46,0.00022465,3]
[349852184,1737461440018,-500.0,0.00022465,3]
[349852186,1737461440027,-500.0,0.00022465,3]
[349852189,1737461440038,-500.0,0.00022465,3]
[349852191,1737461440047,-1369.29,0.00022465,3]
[349852200,1737461440057,-500.0,0.00022465,3]
[349852203,1737461440147,-500.0,0.00022465,3]
[349852205,1737461440158,-500.0,0.00022465,3]
[349852207,1737461440167,-2319.36,0.00022465,3]
[349852209,1737461440177,-500.0,0.00022465,3]
[349852211,1737461440186,-500.0,0.00022465,3]
[349852213,1737461440195,-500.0,0.00022465,3]
[349852215,1737461440204,-500.0,0.00022479,2]
[349852217,1737461440214,-417.77487374,0.00022483,2]
[349852219,1737461440224,-500.0,0.00022483,2]
[349852221,1737461440234,-559.91687658,0.00022485,2]
[349852223,1737461440248,-502.33067549,0.00022485,2]
[349852225,1737461440257,-500.0,0.00022485,2]
[349852227,1737461440267,-919.11146386,0.00022521,3]
[349852229,1737461440276,-500.0,0.00022532,2]
[349852231,1737461440287,-500.0,0.00022575,2]
[349852233,1737461440298,-2415.90762274,0.0002258,2]
[349852235,1737461440307,-150.0,0.000226,2]
[349852237,1737461440318,-249.40677107,0.00022601,2]
[349852239,1737461440329,-151.0,0.00022602,7]
[349852241,1737461440338,-374.86295721,0.00022602,3]
[349852243,1737461440347,-500.0,0.00022602,3]
[349852245,1737461440357,-500.0,0.00022602,3]
[349852247,1737461440366,-500.0,0.00022602,3]
[349852249,1737461440376,-500.0,0.00022602,3]
[349852251,1737461440388,-151.0,0.00022602,7]
[349852253,1737461440398,-151.0,0.00022602,7]
[349852255,1737461440408,-156.585186,0.00022602,7]
[349852257,1737461440418,-156.585186,0.00022602,7]
[349852259,1737461440427,-156.585186,0.00022602,7]
[349852261,1737461440436,-156.585186,0.00022602,7]
[349852263,1737461440445,-500.0,0.00022602,3]
[349852265,1737461440454,-626.69,0.00022602,3]
[349852267,1737461440464,-500.0,0.00022602,3]
[349852269,1737461440473,-634.47,0.00022602,3]
[349852271,1737461440483,-151.0,0.00022602,7]
[349852273,1737461440492,-500.0,0.00022602,3]
[349852275,1737461440501,-500.0,0.00022602,3]
[349852277,1737461440510,-500.0,0.00022602,3]
[349852279,1737461440519,-500.0,0.00022602,3]
[349852281,1737461440529,-500.0,0.00022602,3]
[349852283,1737461440539,-500.0,0.00022602,3]
[349852285,1737461440549,-500.0,0.00022602,3]
[349852287,1737461440558,-500.0,0.00022602,3]
[349852289,1737461440568,-500.0,0.00022602,3]
[349852291,1737461440578,-500.0,0.00022602,3]
[349852293,1737461440587,-500.0,0.00022602,3]
[349852296,1737461440597,-500.0,0.00022602,3]
[349852298,1737461440607,-500.0,0.00022602,3]
[349852300,1737461440616,-500.0,0.00022602,3]
[349852302,1737461440625,-500.0,0.00022602,3]
[349852304,1737461440635,-151.0,0.00022602,7]
[349852306,1737461440644,-151.0,0.00022602,7]
[349852308,1737461440653,-500.0,0.00022602,3]
[349852310,1737461440663,-151.0,0.00022602,7]
[349852312,1737461440672,-151.0,0.00022602,7]
[349852314,1737461440682,-235.595864,0.00022602,7]
[349852316,1737461440691,-594.33,0.00022602,3]
[349852318,1737461440700,-500.0,0.00022602,3]
[349852320,1737461440709,-500.0,0.00022602,2]
[349852322,1737461440718,-500.0,0.00022602,3]
[349852324,1737461440727,-500.0,0.00022602,2]
[349852326,1737461440736,-500.0,0.00022602,3]
[349852328,1737461440746,-729.11,0.00022602,3]
[349852330,1737461440756,-151.0,0.00022602,7]
[349852332,1737461440766,-151.0,0.00022602,7]
[349852334,1737461440775,-500.0,0.00022602,3]
[349852335,1737461440786,-500.0,0.00022602,3]
[349852337,1737461440795,-500.0,0.00022602,3]
[349852339,1737461440804,-588.42,0.00022602,3]
[349852341,1737461440813,-1715.19,0.00022602,3]
[349852343,1737461440823,-1280.51,0.00022602,3]
[349852345,1737461440832,-151.0,0.00022602,7]
[349852347,1737461440841,-151.0,0.00022602,7]
[349852349,1737461440851,-1069.22,0.00022602,3]
[349852351,1737461440860,-1708.09,0.00022602,3]
[349852353,1737461440869,-731.78,0.00022602,3]
[349852355,1737461440879,-500.0,0.00022602,3]
[349852357,1737461440888,-500.0,0.00022602,3]
[349852359,1737461440897,-500.0,0.00022602,3]
[349852361,1737461440906,-151.0,0.00022602,7]
[349852363,1737461440916,-165.347969,0.00022602,7]
[349852365,1737461440925,-557.49,0.00022602,3]
[349852367,1737461440934,-500.0,0.00022602,3]
[349852369,1737461440944,-277.841377,0.00022602,7]
[349852371,1737461440953,-277.841377,0.00022602,7]
[349852373,1737461440963,-5473.07,0.00022602,3]
[349852375,1737461440972,-9457.26,0.00022602,3]
[349852377,1737461440981,-277.841377,0.00022602,7]
[349852379,1737461440991,-277.841377,0.00022602,7]
[349852381,1737461440999,-500.0,0.00022602,3]
[349852383,1737461441009,-500.0,0.00022602,3]
[349852385,1737461441018,-500.0,0.00022602,3]
[349852387,1737461441027,-3204.18,0.00022602,3]
[349852389,1737461441038,-1004.53,0.00022602,3]
[349852391,1737461441047,-500.0,0.00022602,3]
[349852393,1737461441056,-500.0,0.00022602,3]
[349852395,1737461441065,-500.0,0.00022602,3]
[349852397,1737461441074,-151.0,0.00022602,7]
[349852399,1737461441084,-500.0,0.00022602,3]
[349852401,1737461441093,-198.16,0.00022602,3]
[349852403,1737461441102,-1448.9,0.00022602,3]
[349852405,1737461441111,-500.0,0.00022602,3]
[349852407,1737461441120,-1352.71,0.00022602,3]
[349852409,1737461441130,-527.44,0.00022602,3]
[349852411,1737461441139,-972.81,0.00022602,3]
[349852413,1737461441148,-198.06,0.00022602,3]
[349852415,1737461441157,-828.46,0.00022602,3]
[349852417,1737461441166,-500.0,0.00022602,3]
[349852419,1737461441175,-500.0,0.00022602,3]
[349852421,1737461441184,-1369.29,0.00022602,3]
[349852422,1737461441193,-500.0,0.00022602,3]
[349852424,1737461441203,-2319.36,0.00022602,3]
[349852426,1737461441212,-500.0,0.00022602,3]
[349852428,1737461441221,-500.0,0.00022602,3]
[349852430,1737461441231,-500.0,0.00022619,3]
[349852433,1737461441241,-260.55209548,0.00022619,3]
[349852435,1737461441255,-500.0,0.00022619,3]
[349852437,1737461441265,-500.0,0.00022619,3]
[349852439,1737461441274,-500.0,0.00022619,3]
[349852441,1737461441284,-173.45949388,0.00022619,3]
[349852442,1737461441294,-151.0,0.00022619,7]
[349852444,1737461441303,-919.11146386,0.00022624,3]
[349852446,1737461441311,-3000.0,0.00022639,2]
[349852448,1737461441321,-169.39946869,0.00022685,2]
[349852450,1737461441331,-1130.0,0.0002272,4]
[349852452,1737461441340,-919.11146386,0.00022728,3]
[349852454,1737461441350,-370.33128259,0.00022738,2]
[349852456,1737461441359,-500.0,0.00022738,2]
[349852458,1737461441370,-500.0,0.00022738,2]
[349852460,1737461441380,-500.0,0.00022738,2]
[349852462,1737461441390,-500.0,0.00022738,2]
[349852464,1737461441400,-479.42167549,0.00022738,2]
[349852466,1737461441409,-204.21,0.00022739,3]
[349852468,1737461441419,-156.585186,0.00022739,7]
[349852470,1737461441429,-156.585186,0.00022739,7]
[349852472,1737461441438,-500.0,0.00022739,3]
[349852474,1737461441447,-634.47,0.00022739,3]
[349852476,1737461441457,-151.0,0.00022739,7]
[349852478,1737461441467,-500.0,0.00022739,3]
[349852480,1737461441476,-500.0,0.00022739,3]
[349852482,1737461441486,-282.66,0.00022739,3]
[349852484,1737461441496,-500.0,0.00022739,3]
[349852486,1737461441505,-361.71,0.00022739,3]
[349852488,1737461441514,-151.0,0.00022739,7]
[349852490,1737461441523,-160.11,0.00022739,3]
[349852492,1737461441533,-151.0,0.00022739,7]
[349852494,1737461441544,-594.33,0.00022739,3]
[349852496,1737461441553,-500.0,0.00022739,3]
[349852498,1737461441562,-500.0,0.00022739,2]
[349852500,1737461441571,-500.0,0.00022739,2]
[349852502,1737461441580,-729.11,0.00022739,3]
[349852504,1737461441589,-213.958673,0.00022739,7]
[349852506,1737461441599,-500.0,0.00022739,3]
[349852508,1737461441608,-588.42,0.00022739,3]
[349852510,1737461441618,-1715.19,0.00022739,3]
[349852512,1737461441627,-1280.51,0.00022739,3]
[349852514,1737461441636,-151.0,0.00022739,7]
[349852516,1737461441645,-1069.22,0.00022739,3]
[349852518,1737461441655,-1708.09,0.00022739,3]
[349852520,1737461441664,-731.78,0.00022739,3]
[349852522,1737461441674,-156.40234345,0.00022739,3]
[349852524,1737461441683,-500.0,0.00022739,3]
[349852526,1737461441693,-557.49,0.00022739,3]
[349852528,1737461441703,-277.841377,0.00022739,7]
[349852529,1737461441712,-5473.07,0.00022739,3]
[349852532,1737461441721,-9457.26,0.00022739,3]
[349852534,1737461441731,-277.841378,0.00022739,7]
[349852535,1737461441740,-498.59974752,0.00022739,3]
[349852537,1737461441749,-500.0,0.00022739,3]
[349852539,1737461441759,-500.0,0.00022739,3]
[349852541,1737461441767,-3204.18,0.00022739,3]
[349852543,1737461441776,-1004.53,0.00022739,3]
[349852545,1737461441785,-500.0,0.00022739,3]
[349852547,1737461441794,-500.0,0.00022739,3]
[349852549,1737461441803,-210.609121,0.00022739,7]
[349852551,1737461441812,-500.0,0.00022739,3]